Workbook

Sheet Лист1
A1: Школа | C1: МБОУ "Нижнеуратьминская СОШ" НМР РТ | F1: Согласование: | G1: должность | H1: Директор
A2: Типовое примерное меню приготавливаемых блюд | G2: фамилия | H2: Хайруллина Р.Р.
A3: Возрастная категория | E3: 7-11 лет | G3: дата | H3: 10 | I3: 2 | J3: 2025
H4: день | I4: месяц | J4: год
A5: Неделя | B5: День недели | C5: Прием пищи | D5: Раздел меню | E5: Блюда | F5: Вес блюда, г | G5: Белки | H5: Жиры | I5: Углеводы | J5: Калорийность | K5: № рецептуры | L5: Цена
A6: 1 | B6: 1 | C6: Завтрак | D6: Хлеб бел. | E6: хлеб с сыром | F6: 30 | G6: 4.15 | H6: 2.82 | I6: 9.84 | J6: 81.33
D7: гор.блюдо | E7: Котлеты Домашние с гречкой | F7: 90 | G7: 8.01 | H7: 11.14 | I7: 35.71 | J7: 248.00
D8: гарнир | E8: Макаронные изделия (рожки) отварные с маслом сливочным | F8: 155 | G8: 5.90 | H8: 4.58 | I8: 31.96 | J8: 191.20
D9: напиток | E9: Чай без сахара | F9: 200 | G9: 0.40 | H9: 0.10 | I9: 0.01 | J9: 2.80
D10: хлеб черн. | E10: Хлеб ржаной | F10: 25 | G10: 1.65 | H10: 0.30 | I10: 9.90 | J10: 49.50
D13: итого | F13: =SUM(F6:F12) -> 500 | G13: =SUM(G6:G12) -> 20.11 | H13: =SUM(H6:H12) -> 18.94 | I13: =SUM(I6:I12) -> 87.42 | J13: =SUM(J6:J12) -> 572.83 | L13: 80.66
A14: 1 | B14: 2 | C14: Завтрак | D14: гор.блюдо | E14: Биточки куриные Солнышко | F14: 90 | G14: 6.01 | H14: 11.53 | I14: 12.88 | J14: 183.45
D15: гарнир | E15: Каша пшеничная вязкая с маслом сливочным | F15: 153 | G15: 6.70 | H15: 4.38 | I15: 35.99 | J15: 227.00
D16: напиток | E16: Кофейный напиток с молоком | F16: 200 | G16: 3.17 | H16: 2.68 | I16: 9.98 | J16: 60.10
D17: хлеб бел. | E17: Хлеб пшеничный | F17: 30 | G17: 2.28 | H17: 0.24 | I17: 14.76 | J17: 70.50
D18: хлеб черн. | E18: Хлеб ржаной | F18: 30 | G18: 1.98 | H18: 0.36 | I18: 11.88 | J18: 59.40
D20: итого | F20: =SUM(F14:F19) -> 503 | G20: =SUM(G14:G19) -> 20.14 | H20: =SUM(H14:H19) -> 19.19 | I20: =SUM(I14:I19) -> 85.49 | J20: =SUM(J14:J19) -> 600.45 | L20: 80.66
A21: 1 | B21: 3 | C21: Завтрак | D21: фрукты | E21: яблоко | F21: 100 | G21: 0.4 | H21: 0.4 | I21: 9.8 | J21: 47
D22: гор.блюдо | E22: Плов из куриной грудки | F22: 200 | G22: 15.42 | H22: 17.96 | I22: 38.93 | J22: 390.5
D23: напиток | E23: Чай с сахаром и лимоном | F23: 200 | G23: 0.13 | H23: 0.02 | I23: 8.2 | J23: 34.02
D24: хлеб бел. | E24: Хлеб пшеничный | F24: 30 | G24: 2.28 | H24: 0.24 | I24: 14.76 | J24: 70.5
D25: хлеб черн. | E25: Хлеб ржаной | F25: 20 | G25: 1.32 | H25: 0.24 | I25: 7.92 | J25: 39.6
D28: итого | F28: =SUM(F21:F27) -> 550 | G28: =SUM(G21:G27) -> 19.55 | H28: =SUM(H21:H27) -> 18.86 | I28: =SUM(I21:I27) -> 79.61 | J28: =SUM(J21:J27) -> 581.62 | L28: 80.66
A29: 1 | B29: 4 | C29: Завтрак | D29: гор.блюдо | E29: Овощи тушенные с мясом | F29: 200 | G29: 14.05 | H29: 15.97 | I29: 32.8 | J29: 374.45
D30: доп.гарнир | E30: Капуста тушенная | F30: 50 | G30: 0.85 | H30: 2.5 | I30: 4.22 | J30: 42.85
D31: напиток | E31: Напиток из урюка | F31: 200 | G31: 0.75 | H31: 0.06 | I31: 15.95 | J31: 68.52
D32: хлеб бел. | E32: Хлеб пшеничный | F32: 30 | G32: 2.28 | H32: 0.24 | I32: 14.76 | J32: 70.5
D33: хлеб черн. | E33: Хлеб ржаной | F33: 30 | G33: 1.98 | H33: 0.36 | I33: 11.88 | J33: 59.4
D36: итого | F36: =SUM(F29:F35) -> 510 | G36: =SUM(G29:G35) -> 19.91 | H36: =SUM(H29:H35) -> 19.13 | I36: =SUM(I29:I35) -> 79.61 | J36: =SUM(J29:J35) -> 615.72 | L36: 80.66
A37: 1 | B37: 5 | C37: Завтрак | D37: фрукты | E37: Яблоки | F37: 100 | G37: 0.4 | H37: 0.4 | I37: 9.8 | J37: 47
D38: гор.блюдо | E38: Сырники из творога со сгущенным молоком | F38: 150 | G38: 15.55 | H38: 18.35 | I38: 36.03 | J38: 398.93
D39: гор.напиток | E39: Чай с сахаром | F39: 200 | G39: 0.07 | H39: 0.02 | I39: 8 | J39: 32
D40: хлеб бел. | E40: Хлеб пшеничный | F40: 30 | G40: 2.2 | H40: 0.24 | I40: 14.76 | J40: 70.5
D41: хлеб черн. | E41: Хлеб ржаной | F41: 30 | G41: 1.98 | H41: 0.36 | I41: 11.88 | J41: 59.4
D44: итого | F44: =F37+F38+F39+F40+F41 -> 510 | G44: =G37+G38+G39+G40+G41 -> 20.20 | H44: 19.37 | I44: 80.47 | J44: 607.83 | L44: 83.89
A45: 2 | B45: 1 | C45: Завтрак | D45: хлеб бел. | E45: Бутерброд с маслом сливочным | F45: 40 | G45: 2.36 | H45: 7.49 | I45: 14.89 | J45: 136
D46: гор.блюдо | E46: Биточки рыбные | F46: 90 | G46: 10.68 | H46: 8.98 | I46: 16.21 | J46: 170.2
D47: гарнир | E47: Макаронные изделия (рожки) отварные с маслом сливочным | F47: 153 | G47: 5.68 | H47: 2.88 | I47: 31.96 | J47: 176.1
D48: напиток | E48: Чай с сахаром, с яблоком | F48: 200 | G48: 0.11 | H48: 0.06 | I48: 8.97 | J48: 36.68
D49: хлеб черн. | E49: Хлеб ржаной | F49: 20 | G49: 1.32 | H49: 0.24 | I49: 7.92 | J49: 39.6
D52: итого | F52: =SUM(F45:F51) -> 503 | G52: =SUM(G45:G51) -> 20.15 | H52: =SUM(H45:H51) -> 19.65 | I52: =SUM(I45:I51) -> 79.95 | J52: =SUM(J45:J51) -> 558.58 | L52: 83.89
A53: 2 | B53: 2 | C53: Завтрак | D53: фрукты | E53: яблоко | F53: 100 | G53: 0.40 | H53: 0.40 | I53: 9.80 | J53: 47.00
D54: гор.блюдо | E54: Жаркое из птицы (куриных грудок) | F54: 200 | G54: 17.01 | H54: 18.47 | I54: 52.76 | J54: 473.54
D55: напиток | E55: Чай с сахаром | F55: 200 | G55: 0.07 | H55: 0.02 | I55: 8.00 | J55: 32.00
D56: хлеб черн. | E56: Хлеб ржаной | F56: 30 | G56: 1.98 | H56: 0.36 | I56: 11.88 | J56: 59.40
D59: итого | F59: =SUM(F53:F58) -> 530 | G59: =SUM(G53:G58) -> 19.46 | H59: 19.25 | I59: 82.44 | J59: 611.94 | L59: 83.89
A60: 2 | B60: 3 | C60: Завтрак | D60: гор.блюдо | E60: Котлеты Здоровье из куриных грудок | F60: 90 | G60: 11.2 | H60: 10.96 | I60: 24.82 | J60: 229.63
D61: гарнир | E61: Каша гречневая вязкая с маслом сливочным | F61: 153 | G61: 4.6 | H61: 7.19 | I61: 20.56 | J61: 165.3
D62: напиток | E62: Чай с сахаром и лимоном | F62: 200 | G62: 0.13 | H62: 0.02 | I62: 8.2 | J62: 34.02
D63: хлеб бел. | E63: Хлеб пшеничный | F63: 30 | G63: 2.28 | H63: 0.24 | I63: 14.76 | J63: 70.5
D64: хлеб черн. | E64: Хлеб ржаной | F64: 30 | G64: 1.98 | H64: 0.36 | I64: 11.88 | J64: 59.4
D67: итого | F67: =SUM(F60:F66) -> 503 | G67: =SUM(G60:G66) -> 20.19 | H67: =SUM(H60:H66) -> 18.77 | I67: =SUM(I60:I66) -> 80.22 | J67: =SUM(J60:J66) -> 558.85 | L67: 83.89
A68: 2 | B68: 4 | C68: Завтрак | D68: сладкое | E68: Крекер | F68: 30 | G68: 2.70 | H68: 5.40 | I68: 14.20 | J68: 135.00
D69: гор.блюдо | E69: Тефтели мясные с геркулесом | F69: 90 | G69: 8.86 | H69: 10.56 | I69: 6.76 | J69: 109.59
D70: гарнир | E70: Макаронны отварные с маслом сливочным | F70: 153 | G70: 5.68 | H70: 2.88 | I70: 31.96 | J70: 176.10
D71: напиток | E71: Напиток из плодов шиповника | F71: 200 | G71: 0.60 | H71: 0.10 | I71: 20.20 | J71: 123.60
D72: хлеб бел. | E72: Хлеб пшеничный | F72: 30 | G72: 2.28 | H72: 0.24 | I72: 14.76 | J72: 70.50
D75: итого | F75: =SUM(F68:F74) -> 503 | G75: =SUM(G68:G74) -> 20.12 | H75: =SUM(H68:H74) -> 19.18 | I75: =SUM(I68:I74) -> 87.88 | J75: =SUM(J68:J74) -> 614.79 | L75: 83.89
A76: 2 | B76: 5 | C76: Завтрак | D76: фрукты | E76: Яблоко | F76: 100 | G76: 0.40 | H76: 0.40 | I76: 9.80 | J76: 47.00
D77: гор.блюдо | E77: Гуляш из куринной грудки | F77: 100 | G77: 8.64 | H77: 9.83 | I77: 13.40 | J77: 209.39
D78: гарнир | E78: Пюре картофельное | F78: 150 | G78: 3.09 | H78: 4.98 | I78: 39.48 | J78: 177.55
D79: напиток | E79: Какао с молоком | F79: 200 | G79: 4.08 | H79: 3.54 | I79: 2.61 | J79: 58.60
D80: хлеб бел. | E80: Хлеб пшеничный | F80: 30 | G80: 2.28 | H80: 0.24 | I80: 14.76 | J80: 70.5
D82: итого | F82: =SUM(F76:F80) -> 580 | G82: =SUM(G76:G80) -> 18.49 | H82: 18.99 | I82: 80.05 | J82: 563.04 | L82: =SUM(L75:L80) -> 83.89
D83: итого | F83: =SUM(F13+F20+F28+F36+F44+F52+F59+F67+F75+F82) -> 5192 | G83: =SUM(G13+G20+G28+G36+G44+G52+G59+G67+G75+G82) -> 198 | H83: 191 | I83: 823 | J83: 5886 | L83: =SUM(L82:L82) -> 83.89
C84: Среднее значение за период: | F84: =(F13+F20+F28+F36+F44+F52+F59+F67+F75+F82+F83)/10 -> 1,038 | G84: =(G13+G20+G28+G36+G44+G52+G59+G67+G75+G82+G83)/10 -> 40 | H84: 38 | I84: 165 | J84: 1,177 | K84: =(K13+K20+K28+K36+K44+K52+K59+K67+K75+K82+K83)/12 -> 0
